bitfinex/quotes_ETHUSD_20240821
["timestamp","ask_amount","ask_price","bid_price","bid_amount"]
[1724261853330,19.7,2623.7,2623.1,3.86591462]
[1724261853331,2.9847,2623.6,2623.3,3.81193]
[1724261853516,2.26847,2623.5,2623.3,3.81197]
[1724261853713,2.9847,2623.6,2623.4,3.86505954]
[1724261854013,2.9847,2623.9,2623.7,3.81138]
[1724261854431,2.9847,2623.9,2623.8,3.81126]
[1724261854631,6.94883,2624.3,2623.8,3.81123]
[1724261854866,1.438883,2624.2,2623.8,3.81123]
[1724261855035,1.438883,2624.2,2623.9,3.8111]
[1724261855373,1.438883,2624.2,2623.9,0.05260749]
[1724261855580,5.249573,2624.2,2623.7,7.62259]
[1724261855876,1.438883,2624.2,2623.8,0.05272666]
[1724261856185,22.7617,2624.6,2624.3,3.81053]
[1724261856464,22.7617,2624.6,2624.4,0.05187701]
[1724261856465,25.41886,2624.6,2624.4,0.05187701]
[1724261856670,5.71886,2624.6,2624.4,0.05187701]
[1724261856875,3.0617,2624.6,2624.3,3.81053]
[1724261857068,3.0617,2624.6,2624.5,0.05174293]
[1724261857371,0.30617,2624.6,2624.5,0.05144728]
[1724261857553,3.80989,2624.8,2624.5,0.05144728]
[1724261857755,6.89497,2624.9,2624.0,3.81093]
[1724261857756,3.0853,2624.9,2624.0,3.81093]
[1724261857957,2.9241,2624.4,2624.1,0.05181902]
[1724261858156,6.73457,2624.4,2623.8,3.81113]
[1724261858370,0.673457,2624.3,2623.9,0.05205733]
[1724261858878,0.673457,2624.3,2623.9,3.86315733]
[1724261859408,0.673457,2624.3,2623.9,0.05205733]
[1724261859967,0.673457,2624.3,2623.1,3.7]
[1724261859968,2.9173,2624.1,2623.4,3.8118]
[1724261860180,2.9173,2624.1,2623.1,3.0]
[1724261860181,0.672806,2624.0,2623.1,3.0]
[1724261860378,0.672806,2624.0,2623.8,3.81113]
[1724261860597,2.9173,2624.1,2623.9,3.81098]
[1724261860807,2.9173,2624.1,2624.0,0.05125661]
[1724261860993,2.9173,2624.1,2624.0,3.86222661]
[1724261861192,3.81018,2624.6,2624.2,3.81058]
[1724261861193,2.9052,2624.6,2624.2,3.81058]
[1724261861392,3.80928,2625.2,2624.6,3.81007]
[1724261861393,3.1345,2625.0,2624.6,3.81007]
[1724261861710,3.1345,2625.0,2624.7,3.86033019]
[1724261861878,3.1345,2625.0,2624.8,3.80972]
[1724261862282,3.1345,2625.0,2624.9,0.05022203]
[1724261862604,3.44795,2625.0,2624.9,0.05022203]
[1724261862906,3.44795,2625.0,2624.7,3.80995]
[1724261863110,3.44795,2625.0,2624.9,0.05011354]
[1724261863293,3.44795,2625.0,2624.8,0.05023261]
[1724261863496,3.44795,2625.0,2624.9,0.05011354]
[1724261863807,3.44795,2625.0,2624.7,3.80995]
[1724261863983,3.44795,2625.0,2624.8,0.05023261]
[1724261864177,3.44795,2625.0,2624.7,3.80995]
[1724261864509,3.1345,2625.0,2624.8,0.05023261]
[1724261864880,3.1345,2625.0,2624.7,3.80995]
[1724261865082,3.1345,2625.0,2624.9,0.05011354]
[1724261865287,2.967,2625.4,2625.1,3.80937]
[1724261865595,2.967,2625.4,2624.8,0.05023261]
[1724261865596,3.0171,2625.8,2625.4,3.80886]
[1724261865797,3.397945,2625.8,2625.5,0.04939929]
[1724261866478,3.397945,2625.8,2625.2,3.80912]
[1724261866679,3.397945,2625.8,2625.6,0.04928028]
[1724261866891,7.206315,2625.8,2625.3,3.80897]
[1724261867096,3.397945,2625.8,2625.7,0.04916128]
[1724261867266,3.0171,2625.8,2625.4,3.80892]
[1724261867472,3.0171,2625.8,2625.7,0.04916128]
[1724261867698,3.0171,2625.8,2625.2,3.80911]
[1724261867699,6.82546,2625.8,2625.2,7.61821]
[1724261867866,6.82546,2625.8,2625.7,0.04916128]
[1724261867867,3.0171,2625.8,2625.7,0.04916128]
[1724261868071,3.699626,2625.8,2625.4,7.61773]
[1724261868267,3.0171,2625.8,2625.7,0.04916128]
[1724261868522,3.0171,2625.8,2625.4,3.80881]
[1724261868824,3.80787,2626.2,2625.6,3.80863]
[1724261868825,6.81623,2626.1,2625.6,3.80863]
[1724261868971,7.197017,2626.1,2625.7,0.04916128]
[1724261869474,3.389087,2626.1,2625.7,0.04916128]
[1724261869887,3.80836,2625.8,2625.7,0.04916128]
[1724261870088,0.380836,2625.8,2625.3,3.809]
[1724261870287,3.80824,2625.9,2625.4,3.80886]
[1724261870563,3.80824,2625.9,2625.4,3.85740609]
[1724261870698,7.61658,2625.9,2625.4,3.85740609]
[1724261870898,4.9088067,2625.9,2625.4,3.85740609]
[1724261871105,4.9088067,2625.9,2625.4,7.66627609]
[1724261871276,7.197097,2626.1,2625.6,3.80863]
[1724261871476,11.005147,2626.1,2625.6,3.80863]
[1724261871807,11.005147,2626.1,2625.7,0.04818906]
[1724261871808,3.80809,2626.0,2625.7,0.04818906]
[1724261872003,3.80809,2626.0,2624.9,3.0]
[1724261872004,3.80809,2626.0,2625.4,3.80892]
[1724261872212,3.80809,2626.0,2625.5,3.85720707]
[1724261872508,3.0083,2626.1,2625.7,3.80839]
[1724261872816,3.0083,2626.1,2625.8,0.04807006]
[1724261873023,4.433917,2626.1,2625.7,3.80839]
[1724261873190,3.80807,2626.0,2625.9,0.04795108]
[1724261873542,3.80828,2625.9,2625.4,3.80893]
[1724261873833,3.80828,2625.9,2625.5,0.04842707]
[1724261874142,4.433917,2626.1,2625.9,3.8082]
[1724261874143,3.0083,2626.1,2625.9,3.8082]
[1724261874528,3.0083,2626.1,2626.0,0.04779847]
[1724261875870,6.81634,2626.1,2625.5,3.8087]
[1724261876005,4.1089,2626.0,2625.5,3.8087]
[1724261876732,4.1089,2626.0,2625.3,3.80895]
[1724261876733,3.80839,2625.8,2625.3,3.80895]
[1724261876929,3.0174,2625.7,2625.3,3.80895]
[1724261877304,3.0174,2625.7,2624.6,3.915]
[1724261877305,3.80866,2625.6,2624.6,3.915]
[1724261878264,3.46368524,2625.7,2625.2,3.80923]
[1724261878420,7.27225524,2625.7,2625.2,3.80923]
[1724261879165,3.80866,2625.6,2625.1,3.80936]
[1724261879332,3.0195,2625.5,2625.0,3.80941]
[1724261879531,3.74673452,2625.5,2624.9,3.80956]
[1724261879762,3.80895,2625.4,2624.9,3.80956]
[1724261879933,7.55560452,2625.5,2625.0,3.80944]
[1724261880133,4.94537645,2625.4,2624.9,3.80966]
[1724261880366,6.82886,2625.2,2624.7,3.80984]
[1724261880550,3.0195,2625.2,2624.7,3.80984]
[1724261882528,7.44,2625.4,2625.3,3.80908]
[1724261882731,2.9026,2625.6,2625.3,3.80908]
[1724261883081,6.71126,2625.6,2625.1,3.80923]
[1724261883282,7.682357,2625.6,2625.1,3.80923]
[1724261883427,7.682357,2625.6,2625.2,0.04903087]
[1724261883963,7.682357,2625.6,2625.1,3.80936]
[1724261884280,2.9026,2625.6,2625.4,3.80885]
[1724261884424,2.9383,2625.8,2625.5,3.80879]
[1724261884624,4.356948,2625.8,2625.6,0.04855477]
[1724261884824,4.356948,2625.8,2625.4,3.80885]
[1724261885575,4.356948,2625.8,2625.2,3.80915]
[1724261885576,8.165318,2625.8,2625.3,3.80907]
[1724261885799,3.80872,2625.6,2625.4,0.0487928]
[1724261885945,3.80868,2625.6,2624.8,6.80971]
[1724261886140,3.80868,2625.6,2624.9,3.85897804]
[1724261886141,2.8791,2625.4,2624.9,3.85897804]
[1724261886370,2.8791,2625.4,2625.0,3.8094]
[1724261886678,3.80925,2625.2,2625.1,0.04914992]
[1724261886881,3.80909,2625.3,2625.1,0.04914992]
[1724261887067,3.80909,2625.3,2624.9,3.80965]
[1724261887485,3.80909,2625.3,2625.0,0.04910075]
[1724261887688,7.32066272,2625.4,2625.0,0.04910075]
[1724261888276,7.32072272,2625.4,2625.0,0.04910075]
[1724261888585,2.8791,2625.4,2625.2,3.80916]
[1724261888787,2.8791,2625.4,2625.3,3.85798809]
[1724261888954,2.9498,2625.7,2625.4,3.8088]
[1724261889154,2.9498,2625.7,2625.5,0.04867005]
[1724261889779,4.1483068,2625.7,2625.5,0.04867005]
[1724261889979,4.1483068,2625.7,2625.2,3.80912]
[1724261890174,4.1483068,2625.7,2625.3,3.85785575]
[1724261890175,2.9498,2625.7,2625.3,3.85785575]
[1724261891000,2.9498,2625.7,2625.3,0.04885575]
[1724261891197,6.75883,2625.4,2624.5,5.3817]
[1724261891415,4.484983,2625.3,2624.6,3.0496892]
[1724261891585,4.484983,2625.3,2624.8,3.8098]
[1724261891784,4.484983,2625.3,2624.9,0.04926466]
[1724261892632,3.80931,2625.2,2624.8,3.80981]
[1724261892839,3.80931,2625.2,2624.9,0.04926466]
[1724261893018,4.484973,2625.3,2624.9,0.04926466]
[1724261893590,2.9498,2625.4,2624.9,3.85890466]
[1724261893789,2.9498,2625.4,2625.1,3.80928]
[1724261894091,2.9498,2625.4,2625.2,3.85805749]
[1724261894286,2.9498,2625.4,2625.2,0.04890749]
[1724261894705,6.75875,2625.4,2625.2,0.04890749]
[1724261894909,6.75875,2625.4,2624.5,3.0]
[1724261894910,3.80937,2625.1,2624.7,3.80994]
[1724261895105,3.80977,2624.9,2624.3,3.8104]
[1724261895315,3.80977,2624.9,2624.4,3.81035]
[1724261895498,7.44,2625.1,2624.1,7.62143]
[1724261895499,6.84135,2624.7,2624.1,7.62143]
[1724261896009,6.84135,2624.7,2624.2,3.81065]
[1724261896394,3.0313,2624.7,2624.3,3.81052]
[1724261896593,3.0313,2624.7,2624.3,3.81047]
[1724261897132,4.096403,2624.7,2624.2,3.81067]
[1724261897302,4.096403,2624.7,2623.8,4.19285]
[1724261897303,3.81017,2624.6,2623.8,4.19285]
[1724261897502,6.82133,2624.5,2624.0,3.81096]
[1724261898611,3.81049,2624.4,2623.8,0.3817]
[1724261898810,6.91824,2624.3,2623.8,4.19289]
[1724261899031,6.91824,2624.3,2623.9,3.81111]
[1724261899338,3.1077,2624.3,2624.0,3.81097]
[1724261899691,3.1077,2624.3,2624.1,3.81081]
[1724261900521,3.1077,2624.3,2624.0,3.81097]
[1724261900734,3.1077,2624.3,2624.0,3.8109]
[1724261900935,3.1077,2624.3,2624.0,3.81089]
[1724261901237,3.1077,2624.3,2624.2,3.81068]
[1724261901447,6.70738,2624.6,2624.0,7.62172]
[1724261901624,8.503109,2624.6,2624.1,3.81076]
[1724261901996,8.503109,2624.6,2624.2,3.81066]
[1724261901997,2.8972,2624.6,2624.2,3.81066]
[1724261902259,2.8972,2624.6,2623.8,0.3817]
[1724261902260,2.8972,2624.6,2624.5,3.81024]
[1724261902458,3.0145,2624.9,2624.5,3.81017]
[1724261902599,3.0145,2624.9,2624.1,3.81081]
[1724261902600,3.0145,2624.9,2624.6,3.81007]
[1724261902955,3.0145,2624.9,2624.6,3.81002]
[1724261903339,3.0145,2624.9,2624.5,3.81024]
[1724261903699,3.0145,2624.9,2624.6,3.81005]
[1724261903946,3.0145,2624.9,2624.7,3.80993]
[1724261904111,3.0145,2624.9,2623.5,4.57466505]
[1724261904112,3.0145,2624.9,2624.6,3.8101]
[1724261904654,3.0145,2624.9,2624.3,3.81043]
[1724261904655,3.696887,2624.9,2624.3,3.81043]
[1724261904799,7.44,2625.2,2624.0,3.81096]
[1724261904800,3.81034,2624.5,2624.0,3.81096]
[1724261905823,3.81034,2624.5,2624.1,0.04910346]
[1724261905996,3.81034,2624.5,2624.0,3.81096]
[1724261906398,2.9656,2624.6,2624.1,3.85989346]
[1724261906643,6.77572,2624.6,2624.1,3.85989346]
[1724261907333,8.578298,2624.6,2624.1,3.85989346]
[1724261907539,3.81026,2624.5,2624.1,3.85989346]
[1724261908105,4.768178,2624.6,2624.1,3.85989346]
[1724261908338,2.9656,2624.6,2624.3,3.8104]
[1724261908735,2.9656,2624.6,2624.4,0.04874608]
[1724261909634,2.9656,2624.6,2624.2,3.81067]
[1724261909987,2.9656,2624.6,2624.3,0.0488652]
[1724261910295,1.59537603,2625.1,2624.3,0.0488652]
[1724261910296,12.26,2625.5,2624.6,3.81006]
[1724261910432,10.4036,2625.6,2624.9,3.80966]
[1724261910433,2.9636,2625.6,2624.9,3.80966]
[1724261910637,2.9636,2625.6,2624.6,3.81006]
[1724261910638,2.9636,2625.6,2625.2,3.80922]
[1724261910951,2.9636,2625.6,2625.3,3.85670441]
[1724261911167,2.9636,2625.6,2625.3,0.04767441]
[1724261911475,2.9636,2625.6,2625.2,3.80922]
[1724261911688,2.9636,2625.6,2625.4,0.04755539]
[1724261911889,2.9636,2625.6,2625.3,3.85675441]
[1724261912076,2.9636,2625.6,2625.3,0.04767441]
[1724261912445,2.9636,2625.6,2625.2,7.61831]
[1724261912668,2.9636,2625.6,2625.3,0.04767441]
[1724261913137,2.9636,2625.6,2625.2,7.61831]
[1724261913337,2.9636,2625.6,2625.4,0.04755539]
[1724261913667,2.9636,2625.6,2625.2,3.80915]
[1724261913852,2.9636,2625.6,2625.5,0.04743637]
[1724261914177,2.9636,2625.6,2625.2,3.80915]
[1724261914388,2.9636,2625.6,2625.5,0.04743637]
[1724261914563,2.9636,2625.6,2625.2,3.80911]
[1724261914890,7.830302,2625.6,2625.5,0.04743637]
[1724261915072,7.830302,2625.6,2624.8,9.03472]
[1724261915073,3.80912,2625.3,2624.8,3.80972]
[1724261915270,6.77293,2625.2,2624.6,3.81001]
[1724261915435,3.80946,2625.1,2624.6,7.62002]
[1724261915890,3.80946,2625.1,2624.7,3.80995]
[1724261916309,2.9636,2625.2,2624.2,4.51063]
[1724261916641,2.9636,2625.2,2625.0,3.80948]
[1724261917807,4.00396,2625.2,2624.7,3.80995]
[1724261918022,4.00396,2625.2,2625.0,3.80942]
[1724261918023,2.9636,2625.2,2625.0,3.80942]
[1724261918228,2.9636,2625.2,2625.1,3.80937]
[1724261918525,2.8999,2625.5,2625.1,3.80937]
[1724261919091,2.8999,2625.5,2625.2,3.80912]
[1724261919398,2.8999,2625.5,2625.1,3.80937]
[1724261919630,6.7087,2625.5,2625.0,3.80948]
[1724261919828,6.7087,2625.5,2625.1,3.80937]
[1724261920402,7.8662362,2625.5,2625.1,3.80937]
[1724261920696,7.8662362,2625.5,2624.9,3.80953]
[1724261920697,3.80896,2625.4,2624.9,3.80953]
[1724261920931,3.80896,2625.4,2625.2,0.04748684]
[1724261921097,3.80896,2625.4,2624.9,3.80953]
[1724261921098,1.16751962,2625.3,2624.9,3.80953]
[1724261921298,3.80896,2625.4,2624.9,3.80953]
[1724261921518,3.80896,2625.4,2625.0,0.04772494]
[1724261922046,3.80909,2625.3,2625.0,0.04772494]
[1724261923033,6.94,2625.2,2625.0,0.04772494]
[1724261923191,3.80937,2625.1,2625.0,0.04772494]
[1724261923630,3.80937,2625.1,2625.0,0.04770624]
[1724261923953,3.81003,2624.7,2624.1,3.8107]
[1724261924300,3.80975,2624.9,2624.5,3.81021]
[1724261925943,6.94022,2625.0,2624.5,3.81021]
[1724261926500,3.1307,2625.0,2624.7,3.80988]
[1724261927026,3.1307,2625.0,2624.7,3.8087409]
[1724261927808,3.1307,2625.0,2624.7,7.6186209]
[1724261928055,3.1307,2625.0,2624.7,3.8087409]
[1724261928421,4.205627,2625.0,2624.6,3.81003]
[1724261928763,4.205627,2625.0,2624.6,3.81]
[1724261928962,3.1307,2625.0,2624.7,3.80987]
[1724261930605,3.1307,2625.0,2624.1,0.35339074]
[1724261930606,3.1307,2625.0,2624.1,2.377]
[1724261930923,3.1307,2625.0,2624.6,7.62004]
[1724261931148,3.1307,2625.0,2624.6,3.81002]
[1724261931310,3.1307,2625.0,2624.6,7.62004]
[1724261931515,3.1307,2625.0,2624.6,3.81002]
[1724261932356,3.1307,2625.0,2624.7,3.80994]
[1724261932963,3.1307,2625.0,2624.4,3.81038]
[1724261933257,3.1307,2625.0,2624.8,3.8097]
[1724261934259,3.1307,2625.0,2624.8,7.61944]
[1724261934411,6.89455,2625.3,2624.8,3.8097]
[1724261935291,10.70371,2625.3,2624.8,3.8097]
[1724261935488,10.70371,2625.3,2624.4,3.81038]
[1724261935489,3.80933,2625.2,2624.5,3.81023]
[1724261935657,7.61924,2625.0,2624.6,0.04834705]
[1724261935870,3.8096,2625.0,2624.6,0.04834705]
[1724261936208,3.8096,2625.0,2624.2,3.81057]
[1724261936209,6.82153,2624.8,2624.3,3.81048]
[1724261936375,6.82153,2624.8,2624.7,0.04822796]
[1724261936576,6.82153,2624.8,2624.3,3.81048]
[1724261936910,3.80999,2624.7,2624.2,3.81057]
[1724261937221,3.81011,2624.6,2624.4,0.04858527]
[1724261937366,2.9355,2624.5,2624.3,0.04870438]
[1724261937704,2.9355,2624.5,2624.2,3.81057]
[1724261939225,7.53510238,2624.5,2624.0,3.81089]
[1724261939392,3.81056,2624.3,2623.8,4.19282]
[1724261939592,3.81056,2624.3,2623.8,8.00401]
[1724261939915,3.81076,2624.2,2623.8,0.3817]
[1724261940426,7.53512238,2624.5,2624.0,3.81097]
[1724261940609,7.53512238,2624.5,2624.0,3.81088]
[1724261940792,3.8104,2624.4,2623.9,3.81111]
[1724261940996,3.1519,2624.2,2623.8,3.81115]
[1724261941312,6.96258,2624.2,2623.8,3.81115]
[1724261942026,6.96258,2624.2,2623.7,3.8114]
[1724261943007,3.81084,2624.1,2623.7,3.8114]
[1724261943416,3.1519,2624.2,2623.6,3.81149]
[1724261943746,3.1415,2624.5,2624.4,3.81039]
[1724261943879,3.1415,2624.8,2624.5,3.8102]
[1724261944395,3.1415,2624.8,2624.6,3.81007]
[1724261944744,3.1415,2624.8,2624.7,0.04850471]
[1724261945084,3.1415,2624.8,2624.0,3.918]
[1724261945085,6.95131,2624.8,2624.3,3.81053]
[1724261945431,6.95131,2624.8,2624.4,0.04886201]
[1724261945782,3.81013,2624.6,2624.4,0.04886201]
[1724261946004,8.1869376,2624.8,2624.3,3.8105]
[1724261946005,3.80996,2624.7,2624.3,3.8105]
[1724261946352,3.80996,2624.7,2624.2,3.81057]
[1724261946353,3.80996,2624.7,2624.4,0.04886201]
[1724261946958,6.74236,2624.5,2623.8,3.81114]
[1724261947336,3.81054,2624.3,2623.8,3.81114]
[1724261947536,3.81069,2624.2,2623.8,3.81114]
[1724261947722,3.81069,2624.2,2623.6,6.81144]
[1724261947723,3.81069,2624.2,2623.7,3.8114]
[1724261947916,3.81054,2624.3,2623.7,3.8114]
[1724261947917,7.62118,2624.3,2623.7,3.8114]
[1724261948122,3.81054,2624.3,2623.7,3.8114]
[1724261948362,3.81054,2624.3,2623.6,3.81144]
[1724261948363,2.9078,2624.2,2623.6,3.81144]
[1724261948671,3.81112,2623.9,2623.4,3.81171]
[1724261948870,2.9691,2623.7,2623.2,3.81204]
[1724261950007,6.78053,2623.7,2623.2,3.81204]
[1724261950288,2.9691,2623.7,2623.2,3.81203]
[1724261950653,3.81106,2624.0,2623.7,3.81128]
[1724261950654,2.9426,2624.0,2623.7,3.81128]
[1724261951174,2.9426,2624.0,2623.8,0.04819069]
[1724261951378,4.10538,2623.9,2623.8,0.04819069]
[1724261951550,4.10538,2623.9,2623.3,3.81188]
[1724261951758,4.10538,2623.9,2623.8,0.04819069]
[1724261951952,4.10538,2623.9,2623.4,3.81184]
[1724261951953,0.29426,2623.9,2623.4,3.81184]
[1724261952142,6.75369,2624.0,2623.4,3.81183]
[1724261952143,10.56478,2624.0,2623.4,3.81183]
[1724261952342,10.56478,2624.0,2623.5,0.04854824]
[1724261952573,6.75369,2624.0,2623.5,0.04854824]
[1724261952744,6.92706,2623.8,2623.5,0.04854824]
[1724261952938,3.81155,2623.6,2623.5,0.04854824]
[1724261953179,3.81155,2623.6,2623.1,3.8122]
[1724261953353,3.81155,2623.6,2623.5,0.04854824]
[1724261953569,3.1157,2623.5,2622.9,7.62508]
[1724261953738,3.1157,2623.5,2623.1,3.81228]
[1724261954101,3.1157,2623.5,2623.1,3.81219]
[1724261954385,3.1157,2623.5,2623.1,7.62438]
[1724261954959,3.1157,2623.5,2623.2,3.81212]
[1724261955555,3.1157,2623.5,2623.1,3.81219]
[1724261957135,3.1157,2623.5,2623.1,7.62439]
[1724261957340,3.1157,2623.5,2623.1,3.81219]
[1724261957540,3.1157,2623.5,2622.8,3.918]
[1724261957742,3.1157,2623.5,2623.1,3.81225]
[1724261957987,3.1157,2623.5,2623.3,3.81197]
[1724261958587,3.1157,2623.5,2623.3,3.81191]
[1724261959141,11.25127,2623.8,2622.8,7.73069]
[1724261959142,7.44,2623.8,2623.4,7.62368]
[1724261959350,3.1474,2624.2,2623.9,3.81105]
[1724261959809,3.1474,2624.2,2623.9,3.81104]
[1724261960018,3.1474,2624.2,2623.9,3.81103]
[1724261960184,3.1474,2624.2,2623.5,7.62321]
[1724261960185,3.81097,2624.0,2623.5,7.62321]
[1724261960384,3.1474,2623.9,2623.5,3.81159]
[1724261960977,6.95853,2623.9,2623.5,3.81159]
[1724261961717,6.95853,2623.9,2623.3,3.81184]
[1724261961918,6.95853,2623.9,2623.4,0.04895555]
[1724261962092,6.95853,2623.9,2623.4,3.81177]
[1724261962717,3.1474,2623.9,2623.5,3.86053635]
[1724261963425,3.1474,2623.9,2623.5,7.67223635]
[1724261963643,3.1474,2623.9,2623.5,3.86044635]
[1724261963809,3.1474,2623.9,2623.6,3.81143]
[1724261963989,3.1474,2623.9,2623.8,3.81126]
[1724261964430,3.1474,2623.9,2623.8,3.85974255]
[1724261965426,3.118,2624.2,2623.8,3.85974255]
[1724261965675,3.118,2624.2,2623.9,3.81111]
[1724261966173,3.118,2624.2,2624.0,0.04824049]
[1724261969408,3.118,2624.2,2623.8,3.81125]
[1724261969610,3.118,2624.2,2624.1,0.04812134]
[1724261969842,3.118,2624.2,2623.8,3.81125]
[1724261970056,3.118,2624.2,2624.1,0.04812134]
[1724261970258,3.118,2624.2,2623.8,3.81125]
[1724261970467,3.118,2624.2,2624.1,0.04812134]
[1724261970619,3.118,2624.2,2623.9,3.81106]
[1724261970820,3.118,2624.2,2624.1,0.04812134]
[1724261971066,3.118,2624.2,2624.0,0.04805339]
[1724261971356,3.118,2624.2,2624.1,0.04793424]
[1724261971860,3.118,2624.2,2623.9,3.81106]
[1724261972048,3.118,2624.2,2624.1,0.04793424]
[1724261972261,3.118,2624.2,2624.0,0.04805339]
[1724261972473,3.118,2624.2,2624.1,0.04791928]
[1724261972838,3.118,2624.2,2623.8,7.6225]
[1724261973056,3.118,2624.2,2624.1,0.04791554]
[1724261973253,3.118,2624.2,2623.9,3.81105]
[1724261973454,3.118,2624.2,2624.1,0.04791554]
[1724261973662,3.118,2624.2,2624.0,0.04803468]
[1724261973838,3.118,2624.2,2624.1,0.04791554]
[1724261974042,6.8307,2624.4,2624.1,0.04791554]
[1724261974300,6.8307,2624.4,2623.9,3.81105]
[1724261974440,6.8307,2624.4,2624.2,0.0477964]
[1724261974754,3.81053,2624.3,2623.9,3.81105]
[1724261974954,3.81053,2624.3,2623.7,3.81126]
[1724261974955,7.62115,2624.3,2623.7,3.81126]
[1724261975284,6.82979,2624.0,2623.6,3.81143]
[1724261975838,3.0188,2624.0,2623.6,3.81143]
[1724261976044,3.0188,2624.0,2623.7,3.81139]
[1724261979239,3.0188,2624.0,2623.2,3.918]
[1724261979443,6.82986,2624.0,2623.4,3.81171]
[1724261979690,6.82986,2624.0,2623.5,3.81167]
[1724261980785,6.82986,2624.0,2623.6,0.04854878]
[1724261981481,10.64091,2624.0,2623.6,0.04854878]
[1724261981639,6.82985,2624.0,2623.6,0.04854878]
[1724261981841,11.8645006,2624.0,2623.6,0.04854878]
[1724261982084,3.0126,2623.9,2623.6,0.04854878]
[1724261982461,3.81127,2623.8,2623.6,0.04854878]
[1724261982885,3.0126,2623.9,2623.4,3.81172]
[1724261983057,3.0126,2623.9,2623.7,0.0485381]
[1724261983263,3.0126,2623.9,2623.4,3.81172]
[1724261983478,6.82372,2623.9,2623.4,3.81172]
[1724261983652,6.82372,2623.9,2623.5,0.0487877]
[1724261984056,6.82372,2623.9,2623.5,3.8604677]
[1724261985496,3.0126,2623.9,2623.6,3.81152]
[1724261985653,3.0126,2623.9,2623.5,3.8604677]
[1724261985853,3.0126,2623.9,2623.7,0.04855681]
[1724261986162,3.0126,2623.9,2623.8,0.04843389]
[1724261986699,3.0126,2623.9,2623.6,3.81148]
[1724261987061,3.0126,2623.9,2623.7,3.85992307]
[1724261987271,3.0126,2623.9,2623.7,0.04855307]
[1724261989769,9.03537603,2624.2,2623.8,3.81126]
[1724261990105,10.3876,2624.2,2623.8,3.81126]
[1724261990254,14.1983,2624.2,2623.9,0.0483035]
[1724261990652,14.1983,2624.2,2623.7,3.81134]
[1724261990893,14.1983,2624.2,2624.0,0.04818435]
[1724261991175,14.1983,2624.2,2623.7,3.8114]
[1724261991330,14.1983,2624.2,2623.6,3.81143]
[1724261991331,7.62177,2624.1,2623.6,3.81155]
[1724261991517,3.1043,2624.0,2623.6,3.81155]
[1724261992025,3.1043,2624.0,2623.4,7.62348]
[1724261992227,3.81121,2623.9,2623.4,3.81172]
[1724261993089,3.1043,2623.6,2623.2,3.81203]
[1724261993295,6.91589,2623.6,2623.2,3.81203]
[1724261993644,6.91589,2623.6,2623.1,3.81226]
[1724261993785,6.91589,2623.6,2623.2,3.81213]
[1724261995688,6.91589,2623.6,2623.3,0.04737255]
[1724261996033,6.91589,2623.6,2623.2,3.81213]
[1724261996329,6.91589,2623.6,2623.4,0.04725334]
[1724261996635,6.91589,2623.6,2623.5,0.04713414]
[1724261996931,6.91589,2623.6,2623.2,3.81213]
[1724261997129,6.91589,2623.6,2623.3,0.04737255]
[1724261997486,8.1481466,2623.6,2623.4,0.04725334]
[1724261997687,8.1481466,2623.6,2622.8,0.47716071]
[1724261997688,3.81185,2623.4,2622.9,3.81254]
[1724261997922,3.81185,2623.4,2623.0,0.04783503]
[1724262000643,3.81185,2623.4,2623.0,3.86025503]
[1724262000841,3.8117,2623.5,2623.0,7.67267503]
[1724262001169,3.8117,2623.5,2623.0,3.86017503]
[1724262001373,3.8117,2623.5,2623.0,7.67251503]
[1724262001727,3.8117,2623.5,2623.0,7.67253503]
[1724262001927,6.94984,2623.4,2623.0,0.04783503]
[1724262002122,2.9062,2623.1,2622.5,4.2903162]
[1724262002323,3.81251,2623.0,2622.5,3.81315]
[1724262002529,3.81251,2623.0,2622.4,3.81321]
[1724262002530,3.81273,2622.8,2622.6,0.04838693]
[1724262002755,3.81273,2622.8,2622.3,3.81331]
[1724262002756,2.9062,2622.7,2622.3,3.81331]
[1724262002955,2.9062,2622.7,2622.4,0.04871162]
[1724262003274,2.9062,2622.7,2622.4,3.86199162]
[1724262004337,3.81251,2623.0,2622.5,3.81301]
[1724262004539,3.0051,2623.0,2622.6,0.04847304]
[1724262004942,6.81753,2623.0,2622.6,3.86138304]
[1724262005447,6.81753,2623.0,2622.6,0.04847304]
[1724262005767,3.0051,2623.0,2622.6,0.04847304]
[1724262006176,3.0051,2623.0,2622.7,3.81284]
[1724262006493,3.0051,2623.0,2622.8,0.04870251]
[1724262006625,11.25195,2623.4,2622.8,0.04870251]
[1724262006626,14.33425,2623.4,2622.8,0.04870251]
[1724262006833,10.5223,2623.4,2623.1,3.81219]
[1724262007072,3.0823,2623.4,2623.1,3.81219]
[1724262007231,3.0823,2623.7,2623.3,3.81196]
[1724262007569,3.0823,2623.7,2623.4,0.04791222]
[1724262007985,16.07107,2624.0,2623.7,3.8114]
[1724262007986,3.0823,2624.0,2623.7,3.8114]
[1724262008395,3.0823,2624.0,2623.8,0.04728572]
[1724262008740,3.0823,2624.0,2623.7,3.8114]
[1724262009036,3.0823,2624.0,2623.7,3.81134]
[1724262009483,1.99574654,2624.6,2624.0,3.81084]
[1724262009484,2.952,2624.3,2624.0,3.81084]
[1724262009684,2.952,2624.3,2624.0,3.81096]
[1724262009893,2.952,2624.3,2624.1,0.04680099]
[1724262012579,2.952,2624.3,2624.0,3.81087]
[1724262012785,3.0114,2624.7,2624.2,3.81059]
[1724262012932,4.13234203,2624.7,2624.2,3.81059]
[1724262013138,4.13234203,2624.7,2624.3,0.04641306]
[1724262014183,3.0114,2624.7,2624.6,3.8101]
[1724262014389,5.40471603,2625.2,2624.6,3.8101]
[1724262014390,2.9756,2625.0,2624.6,0.04599961]